bitfinex-derivatives/quotes_SOLF0:USTF0_20250703
["timestamp","ask_amount","ask_price","bid_price","bid_amount"]
[1751510456308,6.5808,151.89,151.86,6.5819]
[1751510457910,3.80879105,151.92,151.86,6.5819]
[1751510458914,3.80879105,151.9,151.82,54.45579105]
[1751510459308,6.5819,151.87,151.84,6.5827]
[1751510460515,6.5813,151.88,151.84,3.80879105]
[1751510461007,3.80879105,151.91,151.85,6.5822]
[1751510461205,3.80879105,151.91,151.84,3.80879105]
[1751510461406,3.80879105,151.91,151.82,54.45579105]
[1751510461612,6.5818,151.87,151.84,6.5828]
[1751510463124,6.5821,151.86,151.84,6.5828]
[1751510463522,6.5821,151.86,151.83,6.5832]
[1751510464325,6.5817,151.87,151.84,6.5828]
[1751510465125,6.5822,151.86,151.83,6.5831]
[1751510465426,6.5822,151.86,151.82,54.45579105]
[1751510465822,6.5827,151.85,151.82,50.647]
[1751510466718,6.5827,151.85,151.82,57.2305]
[1751510466922,6.5827,151.85,151.82,50.647]
[1751510467327,6.5822,151.86,151.83,6.5833]
[1751510471026,6.5826,151.85,151.83,6.5833]
[1751510471732,6.5826,151.85,151.82,57.2306]
[1751510472424,6.5826,151.85,151.83,6.5832]
[1751510472624,6.5823,151.86,151.83,6.5832]
[1751510472825,6.5823,151.86,151.82,50.647]
[1751510473025,6.5821,151.86,151.82,50.647]
[1751510473424,3.80879105,151.88,151.82,50.647]
[1751510473728,3.80879105,151.88,151.83,6.5831]
[1751510474321,6.5823,151.86,151.83,6.5831]
[1751510475832,6.5818,151.87,151.84,6.5828]
[1751510481737,6.5818,151.87,151.85,6.5825]
[1751510482041,6.5818,151.87,151.82,54.45579105]
[1751510482237,6.5818,151.87,151.84,6.5827]
[1751510483038,6.5818,151.87,151.85,6.5824]
[1751510484042,9.02258877,151.88,151.86,6.582]
[1751510485037,2.44128877,151.88,151.86,6.582]
[1751510485241,9.02218877,151.89,151.86,6.582]
[1751510489644,9.02258877,151.88,151.85,9.02358877]
[1751510491744,9.02258877,151.88,151.86,6.5819]
[1751510492544,9.02258877,151.88,151.85,6.5823]
[1751510493646,9.02258877,151.88,151.86,6.582]
[1751510493847,2.44128877,151.88,151.86,6.582]
[1751510494044,9.02218877,151.89,151.86,6.582]
[1751510495347,6.5812,151.88,151.86,6.582]
[1751510495847,9.02248877,151.88,151.86,6.582]
[1751510498049,2.44128877,151.88,151.87,6.5816]
[1751510498243,9.02218877,151.89,151.85,2.44128877]
[1751510498950,9.02218877,151.89,151.86,6.5818]
[1751510499549,6.5812,151.88,151.85,6.5823]
[1751510499850,9.02248877,151.88,151.85,6.5823]
[1751510503750,9.02248877,151.88,151.86,6.582]
[1751510504054,2.44128877,151.88,151.86,6.582]
[1751510504658,9.02218877,151.89,151.87,6.5816]
[1751510507459,2.44128877,151.89,151.88,6.5812]
[1751510508056,2.44128877,151.89,151.87,6.5814]
[1751510511057,6.06183683,151.92,151.84,46.02]
[1751510511058,6.5801,151.91,151.84,46.02]
[1751510511267,9.02138877,151.91,151.87,2.44128877]
[1751510512064,9.02138877,151.91,151.88,6.5811]
[1751510512356,9.02138877,151.91,151.84,46.02]
[1751510512357,6.06183683,151.93,151.9,2.44128877]
[1751510512557,6.06183683,151.94,151.92,9.02068877]
[1751510512757,6.06183683,151.95,151.93,2.44128877]
[1751510512957,122.44862109,151.96,151.93,2.44128877]
[1751510512958,128.51045792,151.96,151.93,2.44128877]
[1751510513160,6.5784,151.95,151.92,9.02068877]
[1751510513361,122.44862109,151.96,151.92,2.44128877]
[1751510513562,2.44128877,151.95,151.9,50.6983]
[1751510513763,6.5793,151.93,151.9,53.13958877]
[1751510515768,6.5793,151.93,151.9,54.9407]
[1751510518868,6.5793,151.93,151.91,6.5799]
[1751510519070,120.00733232,151.96,151.9,52.17212754]
[1751510519474,120.00733232,151.96,151.92,6.5792]
[1751510519676,6.5784,151.95,151.92,6.5792]
[1751510521577,126.58513232,151.96,151.93,6.579]
[1751510523075,6.5778,151.96,151.93,6.579]
[1751510529782,10.38892754,151.97,151.94,6.5785]
[1751510529983,3.81142754,151.97,151.9,52.17212754]
[1751510530982,6.5778,151.96,151.93,6.5787]
[1751510531382,2.3378,151.99,151.92,3.81142754]
[1751510531679,6.5774,151.97,151.92,3.81142754]
[1751510531880,6.14922754,151.99,151.92,3.81142754]
[1751510532384,6.5778,151.96,151.92,3.81142754]
[1751510532573,6.14922754,151.99,151.91,2.2979]
[1751510532880,6.5784,151.95,151.92,6.5792]
[1751510535184,3.81142754,151.93,151.9,46.02]
[1751510535579,6.5795,151.92,151.9,46.02]
[1751510536282,10.39132754,151.91,151.9,46.02]
[1751510536486,10.39132754,151.91,151.86,48.1275]
[1751510536987,10.39132754,151.91,151.88,6.5809]
[1751510539285,3.81142754,151.91,151.86,45.9]
[1751510539485,3.81142754,151.89,151.86,45.9]
[1751510539886,6.5816,151.87,151.86,45.9]
[1751510542085,8.40643683,151.94,151.86,45.9]
[1751510542283,3.81142754,151.9,151.86,45.9]
[1751510543589,6.5808,151.89,151.86,45.9]
[1751510544792,6.5808,151.89,151.86,52.4819]
[1751510549889,6.5805,151.9,151.87,6.5816]
[1751510550094,3.81142754,151.92,151.86,45.9]
[1751510550496,6.5802,151.91,151.88,6.5811]
[1751510550893,3.81142754,151.92,151.88,6.5811]
[1751510551095,6.5803,151.9,151.87,6.5815]
[1751510552195,6.5801,151.91,151.88,6.5811]
[1751510553697,6.5804,151.9,151.88,6.5811]
[1751510553899,6.5804,151.9,151.87,8.7263]
[1751510554799,6.5804,151.9,151.88,6.5812]
[1751510555299,6.58,151.91,151.88,6.5812]
[1751510555702,3.81142754,151.93,151.87,8.7263]
[1751510556203,6.5804,151.9,151.87,8.7263]
[1751510557700,6.5804,151.9,151.88,6.5811]
[1751510558004,6.58,151.91,151.88,6.5811]
[1751510560702,3.81142754,151.89,151.82,50.3662]
[1751510561205,6.5823,151.86,151.83,6.5831]
[1751510561506,3.81142754,151.89,151.82,54.17762754]
[1751510561707,10.39242754,151.89,151.82,54.17762754]
[1751510562102,3.81142754,151.92,151.84,3.81142754]
[1751510562308,3.81142754,151.92,151.86,3.81142754]
[1751510562508,3.81142754,151.92,151.87,45.84]
[1751510562910,6.5802,151.91,151.88,6.5812]
[1751510563408,3.81142754,151.92,151.87,45.84]
[1751510564712,6.5799,151.91,151.88,6.581]
[1751510565914,6.5804,151.9,151.87,52.4214]
[1751510566813,6.5804,151.9,151.88,6.5811]
[1751510568616,6.5801,151.91,151.88,6.5811]
[1751510573920,3.81142754,151.93,151.87,48.1769]
[1751510574121,3.81142754,151.93,151.87,52.7479]
[1751510575717,3.81142754,151.95,151.88,3.81142754]
[1751510576620,6.5791,151.93,151.9,6.5801]
[1751510578020,6.5788,151.94,151.91,6.5798]
[1751510578623,6.5788,151.94,151.92,6.5794]
[1751510579021,6.5788,151.94,151.88,3.81142754]
[1751510579325,6.5788,151.94,151.91,6.5798]
[1751510581225,6.579,151.93,151.9,6.5801]
[1751510582925,3.81142754,151.95,151.87,56.55932754]
[1751510583332,6.5792,151.93,151.87,56.55932754]
[1751510583730,6.5792,151.93,151.9,2.43924732]
[1751510583926,6.5792,151.93,151.9,9.01934732]
[1751510584131,9.01794732,151.94,151.9,2.43924732]
[1751510584827,6.5779,151.96,151.92,2.43924732]
[1751510585035,2.43924732,151.96,151.92,2.43924732]
[1751510586132,9.01724732,151.96,151.92,9.01844732]
[1751510586330,2.43924732,151.96,151.92,9.01844732]
[1751510586931,2.43924732,151.96,151.92,6.5792]
[1751510587134,2.43924732,151.96,151.92,9.01844732]
[1751510587831,6.5781,151.96,151.92,6.5792]
[1751510588832,6.5783,151.95,151.92,6.5792]
[1751510589431,6.5779,151.96,151.92,6.5792]
[1751510589834,6.5779,151.96,151.93,6.579]
[1751510591836,10.38767855,151.97,151.93,6.579]
[1751510592036,10.38767855,151.97,151.94,6.5786]
[1751510593036,6.06183683,152.0,151.92,49.57027855]
[1751510593234,3.81027855,152.01,151.94,3.81027855]
[1751510593738,6.5769,151.98,151.94,10.38867855]
[1751510594138,3.81027855,152.01,151.94,3.81027855]
[1751510595039,6.5771,151.98,151.94,10.38867855]
[1751510595536,3.81027855,151.99,151.93,6.8847]
[1751510595740,2.3712,152.02,151.92,45.76]
[1751510595741,3.81027855,151.97,151.92,45.76]
[1751510596244,6.5784,151.95,151.92,52.3392]
[1751510597742,3.81027855,151.97,151.92,45.76]
[1751510598842,6.5788,151.94,151.92,45.76]
[1751510599138,6.5788,151.94,151.92,52.3394]
[1751510599443,6.5788,151.94,151.92,45.76]
[1751510600239,6.579,151.93,151.92,45.76]
[1751510606048,3.81027855,151.97,151.92,45.76]
[1751510606550,6.5784,151.95,151.92,52.3392]
[1751510606850,6.5784,151.95,151.92,45.76]
[1751510607446,6.5784,151.95,151.92,52.3393]
[1751510608446,6.5784,151.95,151.93,6.5789]
[1751510608646,6.5784,151.95,151.92,45.76]
[1751510609651,6.5784,151.95,151.92,52.3392]
[1751510610147,6.5786,151.94,151.92,52.3392]
[1751510611353,6.5783,151.95,151.92,52.3392]
[1751510612650,6.5783,151.95,151.92,45.76]
[1751510612857,6.5787,151.94,151.92,45.76]
[1751510618157,6.5783,151.95,151.92,52.3392]
[1751510618958,6.5787,151.94,151.92,52.3392]
[1751510619159,6.06183683,151.98,151.92,45.76]
[1751510619358,3.81027855,151.95,151.89,50.2334]
[1751510619559,3.81183665,151.95,151.89,50.2334]
[1751510620256,6.5794,151.93,151.9,6.58]
[1751510622361,6.5795,151.92,151.9,6.58]
[1751510622759,6.5795,151.92,151.89,248.5939]
[1751510623761,6.5799,151.91,151.89,48.0395]
[1751510624360,3.81154687,151.93,151.89,45.7]
[1751510624552,6.06183683,151.96,151.89,45.7]
[1751510624755,6.5797,151.92,151.89,52.2805]
[1751510625661,6.5799,151.91,151.89,52.2805]
[1751510625863,3.81154687,151.94,151.89,52.2805]
[1751510626062,6.5796,151.92,151.89,52.2805]
[1751510628061,6.5796,151.92,151.89,244.0205]
[1751510631566,6.5799,151.91,151.89,237.44]
[1751510633561,6.5796,151.92,151.89,244.0207]
[1751510633963,3.81154687,151.94,151.89,237.44]
[1751510634167,3.81154687,151.92,151.89,237.44]
[1751510634565,6.5801,151.91,151.89,237.44]
[1751510635669,6.5803,151.9,151.89,237.44]
[1751510635873,6.5803,151.9,151.89,45.7]
[1751510636067,3.81154687,151.92,151.89,237.42]
[1751510636265,6.5801,151.91,151.89,237.42]
[1751510636471,3.81154687,151.92,151.88,6.5812]
[1751510636766,6.58,151.91,151.88,6.5812]
[1751510636970,3.81154687,151.92,151.88,6.5812]
[1751510637271,3.81154687,151.92,151.87,198.3014]
[1751510637472,6.5806,151.9,151.87,198.3014]
[1751510637866,6.5806,151.9,151.87,200.74146715]
[1751510638870,6.5806,151.9,151.87,198.3014]
[1751510639071,6.5806,151.9,151.87,200.74146715]
[1751510644574,6.5808,151.89,151.87,194.16006715]
[1751510644774,2.44006715,151.89,151.87,191.68]
[1751510645969,9.02106715,151.89,151.87,191.68]
[1751510646674,6.581,151.89,151.87,191.68]
[1751510647678,2.44006715,151.92,151.88,2.44006715]
[1751510648078,2.44006715,151.91,151.88,2.44006715]
[1751510648483,6.5803,151.9,151.88,2.44006715]
[1751510648982,6.5803,151.9,151.87,198.2614]
[1751510649280,9.02006715,151.91,151.88,6.5811]
[1751510649670,6.58,151.91,151.88,6.5811]
[1751510649872,2.44006715,151.91,151.88,2.44006715]
[1751510650076,9.01966715,151.92,151.88,2.44006715]
[1751510650281,9.01936715,151.93,151.89,9.02046715]
[1751510650480,9.01936715,151.93,151.9,191.66]
[1751510650973,6.5796,151.92,151.9,191.66]
[1751510652581,6.5791,151.93,151.9,198.2402]
[1751510652774,9.01916715,151.93,151.9,198.2402]
[1751510653383,6.5791,151.93,151.9,200.68026715]
[1751510653584,6.5791,151.93,151.9,202.94656715]
[1751510653780,3.94663369,151.96,151.91,2.44006715]
[1751510653977,2.44006715,151.95,151.92,2.44006715]
[1751510654277,2.44006715,151.95,151.93,191.64]
[1751510655079,9.01826715,151.95,151.93,191.64]
[1751510656682,6.5782,151.95,151.93,191.64]
[1751510658478,9.01866715,151.94,151.93,191.64]
[1751510659583,6.579,151.93,151.91,6.5796]
[1751510659780,9.01906715,151.93,151.9,196.28636715]
[1751510659980,2.44006715,151.93,151.9,2.2663]
[1751510660181,2.44006715,151.91,151.89,246.0923]
[1751510660381,2.44006715,151.91,151.89,243.8206]
[1751510661086,2.44006715,151.92,151.89,243.8206]
[1751510661282,6.58,151.91,151.89,237.22]
[1751510662375,6.5796,151.92,151.89,243.8007]
[1751510662576,3.81223646,151.93,151.89,237.22]
[1751510662982,6.5795,151.92,151.89,237.22]
[1751510663684,6.5795,151.92,151.89,243.8007]
[1751510664785,10.39133646,151.93,151.9,6.5801]
[1751510665288,6.5791,151.93,151.9,6.5801]
[1751510665685,6.5788,151.94,151.91,6.5798]
[1751510665884,3.81223646,151.95,151.89,237.22]
[1751510666588,6.5791,151.93,151.9,6.5801]
[1751510668888,6.5791,151.93,151.91,191.54]
[1751510669487,6.5791,151.93,151.91,198.1199]
[1751510670089,6.5788,151.94,151.91,198.1199]
[1751510671390,6.5788,151.94,151.92,6.5794]
[1751510672287,6.5788,151.94,151.91,198.1197]
[1751510673088,6.5788,151.94,151.92,6.5794]
[1751510673990,6.5788,151.94,151.91,198.1197]
[1751510675289,3.81223646,151.95,151.91,191.54]
[1751510675689,6.05248404,151.97,151.89,237.14]
[1751510675690,6.58,151.91,151.89,237.14]
[1751510678291,6.58,151.91,151.89,237.12]
[1751510678594,6.5796,151.92,151.89,243.7007]
[1751510683794,6.5799,151.91,151.89,243.7007]
[1751510683994,6.5799,151.91,151.89,237.12]
[1751510684391,9.01944528,151.91,151.89,237.12]
[1751510685489,9.01944528,151.91,151.89,243.7007]
[1751510685995,2.43954528,151.91,151.89,243.7007]
[1751510686398,9.01914528,151.92,151.89,243.7007]
[1751510688597,6.5799,151.91,151.89,243.7007]
[1751510689400,9.01924528,151.92,151.89,243.7007]
[1751510689800,6.05248404,151.96,151.9,2.43954528]
[1751510689996,6.5793,151.93,151.91,191.42]
[1751510690206,9.01884528,151.93,151.91,191.42]
[1751510691401,6.5794,151.92,151.91,191.42]
[1751510693106,9.01874528,151.93,151.91,191.42]
[1751510695906,6.5794,151.92,151.91,191.42]
[1751510700102,6.06030256,151.96,151.91,197.9999]
[1751510700307,2.43954528,151.93,151.91,191.42]
[1751510700704,9.01884528,151.93,151.9,6.5801]
[1751510700902,9.01884528,151.93,151.9,197.9601]
[1751510701812,2.43954528,151.91,151.89,45.66]
[1751510702012,2.43954528,151.91,151.89,237.02]
[1751510702310,9.01984528,151.9,151.89,237.02]
[1751510702510,9.01984528,151.9,151.89,45.66]
[1751510705212,6.5803,151.9,151.89,45.66]
[1751510705414,9.01984528,151.9,151.89,45.66]
[1751510708514,6.5808,151.89,151.86,6.5818]
[1751510708716,9.02034528,151.89,151.86,197.9218]
[1751510708918,6.5808,151.89,151.86,197.9218]
[1751510709111,9.02004528,151.9,151.87,9.02104528]
[1751510709312,6.06030256,151.94,151.89,2.43954528]
[1751510709515,6.5796,151.92,151.89,200.36014528]
[1751510709812,6.06030256,151.97,151.91,2.43954528]
[1751510710013,6.5793,151.93,151.91,2.43954528]
[1751510711520,6.5793,151.93,151.9,54.4391]
[1751510711715,6.5793,151.93,151.91,2.43954528]
[1751510712116,6.5793,151.93,151.9,54.4391]
[1751510713217,3.81095487,151.94,151.9,47.8589]
[1751510713421,3.81095487,151.92,151.87,191.32]
[1751510713621,3.81095487,151.9,151.87,191.32]
[1751510714223,3.81095487,151.91,151.87,191.32]
[1751510714416,3.81095487,151.93,151.87,191.32]
[1751510714624,3.81095487,151.94,151.88,3.81095487]
[1751510714921,6.5791,151.93,151.9,6.58]
[1751510716325,6.5788,151.94,151.89,6.6378]
[1751510717218,6.5788,151.94,151.91,6.5795]
[1751510718425,6.5788,151.94,151.92,6.5794]
[1751510719826,6.5782,151.95,151.92,6.5794]
[1751510720528,6.5787,151.94,151.91,197.8597]
[1751510721327,6.5787,151.94,151.92,6.5794]
[1751510722528,6.5783,151.95,151.92,6.5794]
[1751510722728,3.81095487,151.96,151.92,6.5794]
[1751510722925,6.5782,151.95,151.92,6.5794]
[1751510723125,3.81095487,151.96,151.93,6.5789]
[1751510724527,10.38905487,151.96,151.93,6.5789]
[1751510724731,3.81095487,151.96,151.93,6.5789]
[1751510725429,6.5782,151.95,151.92,6.5792]
[1751510725929,7.78841915,151.98,151.92,3.81095487]
[1751510726429,6.5776,151.97,151.94,6.5783]
[1751510727025,10.55436428,151.98,151.95,6.578]
[1751510727229,108.19000488,151.99,151.94,3.81095487]
[1751510727428,108.19000488,151.99,151.96,3.81095487]
[1751510727724,108.19000488,151.99,151.96,49.33095487]
[1751510727930,108.19000488,151.99,151.96,55.90845487]
[1751510728129,6.5761,152.0,151.96,55.90845487]
[1751510728932,6.5765,151.99,151.96,55.90845487]
[1751510729737,3.81095487,152.02,151.96,45.52]
[1751510730037,3.81095487,151.98,151.94,45.52]
[1751510731634,6.5781,151.95,151.94,45.52]
[1751510731835,3.81095487,151.98,151.94,45.52]
[1751510732939,6.5779,151.96,151.94,45.52]
[1751510737744,6.5779,151.96,151.94,52.0985]
[1751510737944,6.5779,151.96,151.94,45.52]
[1751510738239,6.04353242,152.03,151.94,45.52]
[1751510738445,3.81095487,152.0,151.94,45.52]
[1751510739146,6.5772,151.98,151.95,6.578]
[1751510739345,6.5772,151.98,151.95,8.7666]
[1751510741849,6.5766,151.99,151.96,6.5777]
[1751510744440,6.5762,152.0,151.97,6.5771]
[1751510747852,3.81095487,152.02,151.95,10.9518]
[1751510748151,3.81095487,152.0,151.95,10.9518]
[1751510748352,6.5773,151.97,151.95,4.3739]
[1751510749553,6.5771,151.98,151.95,4.3739]
[1751510749754,3.81095487,152.0,151.95,4.3739]
[1751510750351,8.36913242,152.05,151.95,10.952]
[1751510750550,3.81095487,152.01,151.95,4.3739]
[1751510750853,6.5769,151.98,151.95,4.3739]
[1751510751656,6.5769,151.98,151.96,6.5777]
[1751510752754,6.5769,151.98,151.95,10.9519]
[1751510755658,6.5766,151.99,151.96,6.5777]
[1751510755859,3.81095487,152.01,151.96,6.5777]
[1751510756062,3.81095487,152.01,151.95,4.3739]
[1751510756261,6.5771,151.98,151.95,4.3739]
[1751510757358,6.5766,151.99,151.96,6.5776]
[1751510757758,9.01414629,151.99,151.96,6.5776]
[1751510759863,6.5766,151.99,151.96,6.5776]
[1751510760060,9.01414629,151.99,151.96,6.5776]
[1751510761965,2.43754629,151.98,151.95,6.81144629]
[1751510762558,9.01444629,151.98,151.95,10.9517]
[1751510762761,9.01444629,151.98,151.95,13.38924629]
[1751510765365,2.43754629,152.0,151.96,2.43754629]
[1751510765563,10.38364323,152.05,151.97,2.43754629]
[1751510765564,2.43754629,152.01,151.97,2.43754629]
[1751510765764,9.01344629,152.01,151.98,6.5766]
[1751510767065,2.43754629,152.0,151.98,6.5766]
[1751510767469,6.5759,152.01,151.98,6.5766]
[1751510767673,2.43754629,152.0,151.98,6.5766]
[1751510767873,9.01354629,152.0,151.98,6.5766]
[1751510768074,2.43754629,151.99,151.95,4.3739]
[1751510768271,2.43754629,151.97,151.95,2.1886]
[1751510768671,9.01444629,151.98,151.95,8.7665]
[1751510772076,2.43754629,151.97,151.95,8.7665]
[1751510772570,9.01444629,151.98,151.95,8.7665]
[1751510773473,9.01484629,151.97,151.95,2.1886]
[1751510774576,2.43754629,151.97,151.95,8.7667]
[1751510775076,2.43754629,151.98,151.95,8.7667]
[1751510775278,6.5767,151.99,151.95,8.7667]
[1751510775576,2.43754629,151.98,151.95,8.7667]
[1751510775975,6.5767,151.99,151.95,8.7667]
[1751510776277,2.43754629,151.98,151.95,8.7667]
[1751510776774,2.43754629,151.98,151.95,11.20424629]
[1751510777875,2.43754629,151.98,151.96,6.5777]
[1751510779473,2.43754629,151.99,151.96,6.5777]
[1751510779682,2.43754629,152.0,151.96,2.43754629]
[1751510779879,2.43754629,152.01,151.97,2.43754629]
[1751510780276,2.43754629,152.01,151.98,9.01404629]
[1751510780577,2.43754629,152.01,151.98,6.5765]
[1751510780879,2.43754629,152.01,151.99,6.5764]
[1751510782979,2.43754629,152.01,151.97,2.43754629]
[1751510783178,6.04353242,152.04,151.97,2.43754629]
[1751510783380,2.43754629,152.01,151.97,2.43754629]
[1751510783580,9.01314629,152.01,151.97,9.01464629]
[1751510784273,2.43754629,151.98,151.95,4.62614629]
[1751510784679,2.43754629,151.98,151.96,6.5775]
[1751510785579,6.5762,152.0,151.96,6.5775]
[1751510785877,2.43754629,151.99,151.96,6.5775]
[1751510786081,2.43754629,151.99,151.95,4.62614629]
[1751510786082,2.43754629,152.0,151.97,2.43754629]
[1751510786284,2.43754629,152.01,151.97,2.43754629]
[1751510786781,2.43754629,152.01,151.98,2.43754629]
[1751510786976,6.04353242,152.03,151.98,2.43754629]
[1751510787184,2.43754629,152.03,151.99,2.43754629]
[1751510787981,2.43754629,152.03,152.0,9.01334629]
[1751510788681,2.43754629,152.04,152.01,9.01314629]
[1751510788877,102.91418659,152.05,152.02,2.43754629]
[1751510789081,6.04353242,152.07,152.03,2.43754629]
[1751510789082,2.43754629,152.07,152.03,2.43754629]
[1751510789790,3.80473398,152.08,152.02,3.80473398]
[1751510790386,6.5733,152.07,152.03,6.5746]
[1751510792389,10.37753398,152.08,152.03,6.5746]
[1751510792889,10.37753398,152.08,152.04,6.5742]
[1751510795089,6.04353242,152.11,152.04,45.42]
[1751510795288,3.80473398,152.11,152.04,49.22473398]
[1751510795486,8.27573242,152.14,152.06,3.80473398]
[1751510795695,6.5709,152.12,152.06,3.80473398]
[1751510797300,3.80473398,152.14,152.06,3.80473398]
[1751510797897,3.80473398,152.14,152.08,6.5724]
[1751510797898,6.5709,152.13,152.08,6.5724]
[1751510798497,6.5702,152.14,152.09,6.5722]
[1751510798696,6.5702,152.14,152.09,45.42]
[1751510798896,3.80473398,152.15,152.09,45.42]
[1751510800493,6.5705,152.13,152.09,51.992]
[1751510800700,3.80473398,152.15,152.09,45.42]
[1751510800893,2.2924,152.17,152.09,45.42]
[1751510801200,3.80473398,152.15,152.09,45.42]
[1751510801500,3.80473398,152.15,152.1,6.5716]
[1751510802097,6.5701,152.14,152.1,6.5716]
[1751510802402,3.80473398,152.16,152.09,45.42]
[1751510802601,6.5701,152.14,152.09,45.42]
[1751510802803,3.80473398,152.16,152.11,6.5713]
[1751510803008,3.80473398,152.16,152.1,3.80473398]
[1751510803200,10.37433398,152.16,152.12,6.5706]
[1751510803399,10.37433398,152.16,152.1,3.80473398]
[1751510803400,3.80473398,152.16,152.1,3.80473398]
[1751510804307,6.5698,152.15,152.11,6.5711]
[1751510804803,10.37413398,152.16,152.12,6.5708]
[1751510806803,6.569,152.17,152.13,6.5704]
[1751510807403,6.5693,152.16,152.12,6.5709]
[1751510807796,6.5693,152.16,152.1,6.11753398]
[1751510807797,6.5693,152.16,152.11,3.80473398]
[1751510808404,6.569,152.17,152.13,6.5705]
[1751510808704,3.80473398,152.16,152.1,2.3128]
[1751510808904,3.80473398,152.14,152.11,6.5713]
[1751510809305,6.5699,152.15,152.11,6.5713]
[1751510809702,10.37413398,152.16,152.12,6.5708]
[1751510810500,6.5689,152.17,152.13,6.5705]
[1751510810708,3.80473398,152.18,152.11,3.80473398]
[1751510813504,6.5699,152.15,152.11,10.37583398]
[1751510815611,6.5699,152.15,152.12,6.571]
[1751510817408,3.80473398,152.16,152.1,47.6728]
[1751510817610,3.80473398,152.14,152.1,47.6728]
[1751510818719,6.5708,152.13,152.1,47.6728]
[1751510818913,3.80473398,152.14,152.1,45.36]
[1751510820614,6.5708,152.13,152.1,45.36]
[1751510821318,6.571,152.12,152.1,45.36]
[1751510821518,6.571,152.12,152.09,6.5722]
[1751510821814,6.571,152.12,152.08,6.5725]
[1751510824819,6.5714,152.11,152.07,51.913]
[1751510825022,3.80473398,152.1,152.07,45.34]
[1751510826215,10.37673398,152.1,152.07,45.34]
[1751510827919,6.5725,152.09,152.05,6.5739]
[1751510830621,8.28103242,152.15,152.04,49.16473398]
[1751510830826,8.28103242,152.15,152.06,3.80473398]
[1751510830827,3.80473398,152.13,152.06,3.80473398]
[1751510831322,3.80473398,152.13,152.08,6.5726]
[1751510832522,6.5715,152.11,152.08,6.5726]
[1751510832716,6.04223398,152.15,152.08,3.80473398]
[1751510832922,108.00095593,152.16,152.1,3.80473398]
[1751510833515,6.5703,152.14,152.1,10.37623398]
[1751510834118,6.5703,152.14,152.11,6.5714]
[1751510834320,6.5698,152.15,152.11,6.5714]
[1751510834620,6.5698,152.15,152.1,3.80473398]
[1751510835017,114.57035593,152.16,152.12,6.5707]
[1751510835520,108.00095593,152.16,152.1,3.80473398]
[1751510835722,6.5704,152.14,152.1,10.37643398]
[1751510836421,108.00095593,152.16,152.1,3.80473398]
[1751510836620,108.00095593,152.16,152.1,6.13903398]
[1751510837224,6.5699,152.15,152.11,6.571]
[1751510838524,108.00095593,152.16,152.12,3.80473398]
[1751510838821,6.04353242,152.19,152.12,3.80473398]
[1751510839029,6.04353242,152.19,152.14,6.5699]
[1751510839421,12.2054664,152.2,152.12,3.80473398]
[1751510839622,6.5688,152.18,152.14,6.5699]
[1751510840925,6.5689,152.17,152.14,6.5699]
[1751510842926,9.8482664,152.22,152.14,49.12473398]
[1751510843822,6.5677,152.2,152.16,6.5692]
[1751510844025,9.8482664,152.22,152.16,6.5692]
[1751510844630,9.8482664,152.22,152.15,6.5695]
[1751510844825,3.80473398,152.2,152.15,6.5695]
[1751510845425,6.5682,152.19,152.15,6.5695]
[1751510846829,9.88745064,152.23,152.14,49.12473398]
[1751510847029,3.80473398,152.22,152.15,2.1761]
[1751510847330,6.5676,152.2,152.16,6.5689]
[1751510847523,6.5676,152.2,152.15,2.1761]
[1751510848530,6.5676,152.2,152.17,6.5687]
[1751510849432,6.5673,152.21,152.17,6.5687]
[1751510850330,6.5673,152.21,152.18,6.5683]
[1751510851033,6.5677,152.2,152.15,4.35]
[1751510851232,6.5677,152.2,152.15,8.15473398]
[1751510852530,6.5677,152.2,152.17,6.5686]
[1751510854227,10.37203398,152.21,152.18,6.5683]
[1751510860343,6.5676,152.2,152.17,6.5687]
[1751510862739,10.37203398,152.21,152.18,6.5684]